fUSD/lending_fUSD_20251026
["ID","MTS","AMOUNT","RATE_DAILY","PERIOD"]
[392460244,1761503326175,2008.91968602,0.00038908,120]
[392460245,1761503326723,77925.00078467,0.00015,2]
[392460246,1761503326757,865.18564792,0.00030129,120]
[392460247,1761503327064,595.17285863,0.00038908,60]
[392460248,1761503327427,1181.40898409,0.000271,120]
[392460249,1761503328586,985.999996,0.0003,120]
[392460251,1761503355104,-182.58026006,0.00017635,2]
[392460252,1761503355124,-195.0,0.00017652,2]
[392460253,1761503355145,-2591.16709504,0.00017669,2]
[392460254,1761503355165,-195.0,0.00017703,2]
[392460255,1761503355184,-279.0,0.00017735,2]
[392460256,1761503355204,-5000.0,0.00017736,2]
[392460257,1761503355223,-122.8766909,0.00017736,2]
[392460258,1761503360093,-4877.1233091,0.00017736,2]
[392460259,1761503360113,-3973.80568234,0.00017736,2]
[392460260,1761503360133,-254.0,0.00017856,2]
[392460261,1761503360156,-300.0,0.00017856,2]
[392460262,1761503360185,-505.51960513,0.000184,2]
[392460263,1761503360211,-500.0,0.000184,2]
[392460264,1761503360231,-572.774223,0.000184,2]
[392460265,1761503360254,-500.0,0.000184,2]
[392460266,1761503360276,-500.0,0.000184,2]
[392460267,1761503360298,-511.15608382,0.00018948,2]
[392460268,1761503360319,-1000.0,0.00018948,2]
[392460269,1761503360340,-300.0,0.00019,2]
[392460270,1761503360361,-195.0,0.00019283,2]
[392460271,1761503360383,-195.0,0.00019381,2]
[392460272,1761503360405,-5000.0,0.00019381,2]
[392460273,1761503360428,-195.0,0.00019399,2]
[392460274,1761503360447,-250.0,0.00019399,2]
[392460275,1761503360469,-200.0,0.00019486,2]
[392460276,1761503360493,-236.53,0.00020187,2]
[392460277,1761503360514,-350.0,0.00021,2]
[392460278,1761503360534,-160.97,0.00022,2]
[392460279,1761503360557,-200.680572,0.00023,118]
[392460280,1761503360581,-997.57783267,0.00025,2]
[392460281,1761503360604,-213.43636344,0.00026,2]
[392460282,1761503360626,-160.62707384,0.00026,2]
[392460283,1761503360647,-236.53,0.00026676,2]
[392460284,1761503360667,-964.95453429,0.00027,2]
[392460285,1761503371096,-54.34991158,0.00027,2]
[392460286,1761503371116,-469.46273162,0.00027,2]
[392460287,1761503406917,277.35679052,0.00038908,60]
[392460288,1761503406954,2500.0,0.000297,120]
[392460289,1761503407083,500.0,0.00038908,120]
[392460290,1761503407115,2500.0,0.00027565,120]
[392460291,1761503407192,2500.0,0.00028816,120]
[392460292,1761503407291,2500.0,0.00028816,120]
[392460293,1761503407392,2123.15946283,0.00028816,120]
[392460294,1761503407692,500.0,0.00038908,120]
[392460295,1761503408624,500.0,0.00038908,120]
[392460296,1761503409499,5000.0,0.000297,120]
[392460297,1761503409536,500.0,0.00038908,120]
[392460298,1761503409647,5000.0,0.00027565,120]
[392460299,1761503409744,5000.0,0.00028673,120]
[392460300,1761503409843,5000.0,0.00028673,120]
[392460301,1761503409935,5000.0,0.00028673,120]
[392460302,1761503410179,500.0,0.00038908,120]
[392460303,1761503410794,500.0,0.00038908,120]
[392460304,1761503410970,195.0,0.000297,120]
[392460305,1761503411073,195.0,0.00027565,120]
[392460306,1761503411176,195.0,0.00028673,120]
[392460307,1761503411422,500.0,0.00038908,120]
[392460308,1761503413429,151.0,0.00038908,120]
[392460309,1761503414328,151.0,0.00038908,120]
[392460310,1761503414681,414.0,0.00038908,120]
[392460311,1761503414968,151.0,0.00038908,120]
[392460312,1761503415325,429.318,0.00038908,120]
[392460313,1761503415592,151.0,0.00038908,120]
[392460314,1761503415926,445.202766,0.00038908,120]
[392460315,1761503416213,151.0,0.00038908,120]
[392460316,1761503416549,461.67526834,0.00038908,120]
[392460317,1761503416825,151.0,0.00038908,120]
[392460318,1761503417212,478.75725327,0.00038908,120]
[392460319,1761503417275,220.0,0.00038908,120]
[392460320,1761503417444,250.0,0.00038908,120]
[392460321,1761503417820,496.47127164,0.00038908,120]
[392460322,1761503417891,220.0,0.00038908,120]
[392460323,1761503418096,250.0,0.00038908,120]
[392460324,1761503418445,250.0,0.00038908,120]
[392460325,1761503418478,514.84070869,0.00038908,120]
[392460326,1761503418729,250.0,0.00038908,120]
[392460327,1761503419046,533.88981491,0.00038908,120]
[392460328,1761503419077,250.0,0.00038908,120]
[392460329,1761503419330,250.0,0.00038908,120]
[392460330,1761503419647,553.64373807,0.00038908,120]
[392460331,1761503419677,250.0,0.00038908,120]
[392460332,1761503419944,250.0,0.00038908,120]
[392460333,1761503420245,574.12855637,0.00038908,120]
[392460334,1761503420374,250.0,0.00038908,120]
[392460335,1761503420556,250.0,0.00038908,120]
[392460336,1761503421038,250.0,0.00038908,120]
[392460337,1761503421179,250.0,0.00038908,120]
[392460338,1761503422091,151.0,0.00038908,120]
[392460339,1761503422428,250.0,0.00038908,120]
[392460340,1761503422698,151.0,0.00038908,120]
[392460341,1761503422934,250.0,0.00038908,120]
[392460342,1761503423311,151.0,0.00038908,120]
[392460343,1761503423555,250.0,0.00038908,120]
[392460344,1761503423904,151.0,0.00038908,120]
[392460345,1761503424158,250.0,0.00038908,120]
[392460346,1761503424564,151.0,0.00038908,120]
[392460347,1761503424821,250.0,0.00038908,120]
[392460348,1761503425180,151.0,0.00038908,120]
[392460349,1761503425794,151.0,0.00038908,120]
[392460350,1761503426907,151.0,0.00038908,120]
[392460351,1761503427547,151.0,0.00038908,120]
[392460352,1761503428184,151.0,0.00038908,120]
[392460353,1761503428778,151.0,0.00038908,120]
[392460354,1761503429398,151.0,0.00038908,120]
[392460362,1761503431606,-60.53726838,0.00027,2]
[392460363,1761503431615,-150.0,0.00027,2]
[392460364,1761503431624,-250.0,0.0002813,2]
[392460365,1761503431634,-184.71,0.0002926,2]
[392460366,1761503431643,-280.67857141,0.00029276,2]
[392460367,1761503431653,-250.0,0.000297,2]
[392460368,1761503431662,-233.6560172,0.0002999,2]
[392460369,1761503431671,-3441.68729495,0.0003,2]
[392460370,1761503431680,-1231.0,0.00030129,2]
[392460371,1761503431690,-307.39010114,0.0003013,2]
[392460372,1761503431699,-1056.78565027,0.0003013,2]
[392460373,1761503431712,-654.17879168,0.0003013,2]
[392460374,1761503431721,-400.0,0.000306,2]
[392460375,1761503431730,-250.49,0.00030601,2]
[392460376,1761503431740,-999.0,0.00030632,3]
[392460377,1761503431749,-1584.71,0.00030863,2]
[392460378,1761503431758,-166.9,0.0003087,2]
[392460379,1761503431767,-166.9,0.00031086,2]
[392460381,1761503431775,-181.04,0.00031265,2]
[392460382,1761503431784,-300.0,0.00031267,7]
[392460383,1761503431793,-166.9,0.00031302,2]
[392460384,1761503431803,-166.9,0.00031518,2]
[392460385,1761503431812,-4616.72,0.00031699,2]
[392460386,1761503431822,-166.9,0.00031734,2]
[392460388,1761503431831,-277.14770811,0.00031904,30]
[392460390,1761503431840,-166.9,0.00031951,2]
[392460392,1761503431849,-182.21043677,0.00032,120]
[392460394,1761503431859,-5425.56037296,0.00032,2]
[392460396,1761503431868,-166.9,0.00032167,2]
[392460398,1761503431877,-250.49,0.00032301,2]
[392460400,1761503431886,-300.01661868,0.00032364,3]
[392460403,1761503431896,-166.9,0.00032383,2]
[392460405,1761503431907,-1455.09591,0.000325,120]
[392460408,1761503431916,-166.9,0.00032599,2]
[392460411,1761503431925,-166.9,0.00032815,2]
[392460414,1761503431934,-560.0,0.0003296,2]
[392460417,1761503431943,-182.21043677,0.00033,120]
[392460420,1761503431952,-17723.77429322,0.00033,2]
[392460423,1761503431961,-166.9,0.00033031,2]
[392460426,1761503431970,-236.53,0.00033165,2]
[392460429,1761503431980,-166.9,0.00033247,2]
[392460432,1761503431988,-1000.0,0.00033428,2]
[392460435,1761503431997,-166.9,0.00033463,2]
[392460438,1761503432006,-166.9,0.00033679,2]
[392460440,1761503432015,-198.78,0.0003372,30]
[392460442,1761503432024,-230.53,0.00033858,2]
[392460444,1761503432033,-166.9,0.00033895,2]
[392460446,1761503432042,-182.21043677,0.000339,120]
[392460448,1761503432056,-838.42242434,0.00034,120]
[392460450,1761503432065,-250.49,0.00034001,2]
[392460452,1761503432074,-1144.84,0.00034045,16]
[392460454,1761503432083,-166.9,0.00034111,2]
[392460456,1761503432093,-400.0,0.00034247,2]
[392460458,1761503432102,-166.9,0.00034327,2]
[392460460,1761503432111,-575.0,0.00034347,7]
[392460462,1761503432123,-182.58026005,0.00034406,2]
[392460464,1761503432132,-575.0,0.00034407,2]
[392460466,1761503432141,-575.0,0.00034408,7]
[392460468,1761503432152,-166.47,0.00034494,2]
[392460470,1761503432161,-1037.90133126,0.00034499,30]
[392460472,1761503432171,-150.0,0.00034506,2]
[392460474,1761503432180,-150.0,0.00034506,120]
[392460476,1761503432189,-150.0,0.00034506,2]
[392460478,1761503432198,-500.0,0.00034506,2]
[392460480,1761503432207,-9167.1,0.00034506,2]
[392460482,1761503432216,-652.32,0.00034506,2]
[392460484,1761503432225,-200.0,0.00034506,2]
[392460486,1761503432236,-166.9,0.00034544,2]
[392460488,1761503432245,-16261.15101986,0.0003456,2]
[392460491,1761503432271,-24061.47457847,0.0003456,2]
[392460492,1761503432286,-17488.13038533,0.0003456,2]
[392460493,1761503432296,-575.0,0.00034612,2]
[392460494,1761503432314,-575.0,0.00034633,2]
[392460495,1761503432325,-999.99,0.00034649,2]
[392460496,1761503432334,-993.21,0.00034649,2]
[392460497,1761503432343,-1556.33,0.00034649,2]
[392460498,1761503432353,-500.0,0.000347,5]
[392460499,1761503432362,-166.9,0.0003476,2]
[392460500,1761503432372,-575.0,0.00034802,2]
[392460501,1761503432381,-969.0,0.00034815,2]
[392460502,1761503432390,-166.9,0.00034976,2]
[392460503,1761503432400,-575.0,0.00034994,2]
[392460504,1761503432409,-182.21043677,0.00035,120]
[392460505,1761503432419,-1455.09591,0.00035,120]
[392460506,1761503432428,-533.15473545,0.00035248,5]
[392460507,1761503432437,-2500.0,0.000353,14]
[392460508,1761503432446,-969.0,0.00035343,2]
[392460509,1761503432456,-475.82771539,0.00035458,2]
[392460510,1761503432466,-580.0,0.00035501,2]
[392460511,1761503432476,-414.8,0.00035616,2]
[392460512,1761503432485,-250.49,0.00035701,2]
[392460513,1761503432496,-652.32,0.000358,2]
[392460514,1761503432506,-969.0,0.00035906,2]
[392460515,1761503432515,-312.9686217,0.00035921,2]
[392460516,1761503432526,-308.7818016,0.00035973,5]
[392460517,1761503432536,-1048.999999,0.0003599,30]
[392460518,1761503432546,-838.13,0.0003599,2]
[392460519,1761503432556,-838.13,0.0003599,2]
[392460520,1761503432566,-838.13,0.0003599,2]
[392460521,1761503432577,-838.13,0.0003599,2]
[392460522,1761503432586,-838.13,0.0003599,2]
[392460523,1761503432596,-476.61195222,0.00036,30]
[392460524,1761503432606,-182.21043677,0.00036,120]
[392460525,1761503432615,-1230.37752781,0.00036,120]
[392460526,1761503432624,-150525.58191384,0.00036,2]
[392460527,1761503432728,-14666.98324473,0.00036,2]
[392460528,1761503437352,-150.0,0.0003346,3]
[392460529,1761503437363,-950.48002118,0.00036,2]
[392460530,1761503437375,-552.60017727,0.00036,2]
[392460538,1761503439702,-150.0,0.0003396,3]
[392460539,1761503439711,-15.95454019,0.00034044,7]
[392460540,1761503440001,-484.04545981,0.00034044,7]
[392460541,1761503440010,-125.15454019,0.00034044,7]
[392460542,1761503440022,-356.67559606,0.00034044,7]
[392460543,1761503440032,-1397.21464941,0.00036,2]
[392460573,1761503445535,-3147.167168,0.00036,2]
[392460574,1761503445591,-306.20512,0.00036,2]
[392460576,1761503525553,416.78515512,0.00038908,120]
[392460577,1761503527651,200.0,0.00038908,120]
[392460578,1761503527691,207.22276491,0.00038908,120]
[392460579,1761503528285,200.0,0.00038908,120]
[392460580,1761503531023,200.0,0.00038908,120]
[392460581,1761503531586,200.0,0.00038908,120]
[392460582,1761503532127,151.0,0.00038908,120]
[392460583,1761503532436,162.28864052,0.00038908,120]
[392460584,1761503532734,151.0,0.00038908,120]
[392460585,1761503533411,151.0,0.00038908,120]
[392460586,1761503534026,151.0,0.00038908,120]
[392460587,1761503539630,195.7152517,0.00038908,120]
[392460588,1761503541165,200.0,0.00038908,120]
[392460589,1761503541773,200.0,0.00038908,120]
[392460597,1761503758097,451.9,0.00031507,120]
[392460602,1761503979792,-185.44321115,0.00018902,2]
[392460603,1761504063283,800.0,0.00026986,120]
[392460604,1761504183999,217.48,0.00026986,120]
[392460610,1761504322426,885.66840169,0.000315,120]
[392460611,1761504335123,-165.48895923,0.00018868,2]
[392460612,1761504335144,-195.0,0.00018885,2]
[392460613,1761504335164,-27.45868384,0.00018902,2]
[392460614,1761504397091,-320.34405517,0.00018902,2]
[392460615,1761504399116,2014.50163121,0.00038836,50]
[392460616,1761504419781,-560.0,0.00018902,2]
[392460617,1761504426088,-160.7337634,0.00018902,2]
[392460618,1761504551099,-946.42616654,0.00018902,2]
[392460619,1761504551123,-195.0,0.00018935,2]
[392460620,1761504551144,-195.0,0.0001977,2]
[392460621,1761504551166,-258.58027683,0.00020692,2]
[392460622,1761504551187,-195.0,0.00020755,2]
[392460623,1761504551209,-195.0,0.00020792,2]
[392460624,1761504551230,-195.0,0.00020792,2]
[392460625,1761504551251,-2200.4058801,0.00021418,2]
[392460626,1761504551271,-2200.4058801,0.00023935,2]
[392460627,1761504551292,-560.0,0.00024947,2]
[392460628,1761504551313,-255.909113,0.00026319,2]
[392460629,1761504551334,-2200.4058801,0.00026451,2]
[392460630,1761504551354,-250.45610049,0.00026463,2]
[392460631,1761504551374,-300.0,0.00027396,2]
[392460632,1761504551394,-170.01261388,0.00027397,3]
[392460633,1761504565157,-29.98738612,0.00027397,3]
[392460634,1761504565178,-150.0,0.00027397,3]
[392460635,1761504565198,-69.42420559,0.00027397,3]
[392460636,1761504588695,32782.6,0.00038836,120]
[392460641,1761504631608,-436.01,0.00017212,2]
[392460642,1761504631617,-195.0,0.00017664,2]
[392460643,1761504631626,-436.01,0.00018117,2]
[392460644,1761504631636,-195.0,0.00018933,2]
[392460645,1761504631645,-436.01,0.00019023,2]
[392460646,1761504631654,-195.0,0.00019023,2]
[392460647,1761504631663,-436.01,0.00019929,2]
[392460648,1761504631672,-436.01,0.00020835,2]
[392460649,1761504631681,-8.94288338,0.00021741,2]
[392460650,1761504631692,-427.06711662,0.00021741,2]
[392460651,1761504631702,-436.01,0.00022647,2]
[392460652,1761504631711,-406.22418338,0.000234,2]
[392460653,1761504631722,-14841.75000436,0.000234,2]
[392460654,1761504631731,-436.01,0.00023553,2]
[392460655,1761504631740,-436.01,0.00024458,2]
[392460656,1761504631749,-436.01,0.00025364,2]
[392460657,1761504631758,-436.01,0.0002627,2]
[392460658,1761504631767,-436.01,0.00027176,2]
[392460659,1761504631775,-80.57579441,0.00027397,3]
[392460660,1761504631784,-436.01,0.00028082,2]
[392460661,1761504631794,-436.01,0.00028988,2]
[392460662,1761504631802,-436.01,0.00029894,2]
[392460663,1761504631812,-436.01,0.00030799,2]
[392460664,1761504631820,-436.01,0.00031705,2]
[392460665,1761504631829,-1585.31,0.00031841,120]
[392460666,1761504631838,-162.90901265,0.00032,120]
[392460667,1761504631846,-1282.0,0.00032483,2]
[392460668,1761504631855,-436.01,0.00032611,2]
[392460669,1761504631864,-162.90901265,0.00033,120]
[392460670,1761504631873,-150.0,0.00033252,2]
[392460671,1761504631882,-567.88595721,0.00033317,2]
[392460672,1761504631891,-572.71643269,0.00033352,2]
[392460673,1761504631900,-436.01,0.00033517,2]
[392460674,1761504631909,-162.90901265,0.000339,120]
[392460675,1761504631918,-659.0,0.00033926,7]
[392460676,1761504631926,-203.29,0.00033964,5]
[392460677,1761504631935,-660.0,0.00034138,2]
[392460678,1761504631944,-17671.51,0.00034206,2]
[392460679,1761504631953,-3334.14,0.00034419,2]
[392460680,1761504631962,-436.01,0.00034423,2]
[392460681,1761504631971,-162.90901265,0.00035,120]
[392460682,1761504631979,-250.0,0.00035,7]
[392460684,1761504631989,-1959.58607221,0.0003516,2]
[392460687,1761504632004,-280.95705035,0.0003516,2]
[392460692,1761504632041,-2645.98899094,0.0003516,2]
[392460694,1761504632050,-837.33,0.00035182,2]
[392460696,1761504632060,-659.0,0.00035256,2]
[392460698,1761504632069,-250.0,0.00035313,2]
[392460700,1761504632078,-659.0,0.00035404,7]
[392460702,1761504632087,-1967.31484491,0.00035503,2]
[392460704,1761504632100,-3690.1967,0.00035503,2]
[392460706,1761504632109,-233.8448,0.00035503,2]
[392460708,1761504632118,-500.0,0.00035514,7]
[392460710,1761504632127,-500.0,0.00035514,7]
[392460712,1761504632136,-500.0,0.00035514,7]
[392460714,1761504632146,-292.27385327,0.00035514,7]
[392460716,1761504632155,-9049.52,0.00035515,2]
[392460719,1761504632165,-24229.1406297,0.00035591,2]
[392460722,1761504632179,-18974.42616233,0.00035603,2]
[392460728,1761504632191,-42397.86223632,0.00035603,2]
[392460758,1761504637541,-5.40395501,0.00035603,2]
[392460793,1761504640229,-279.1907,0.00035503,2]
[392460794,1761504640238,-1461.50390548,0.00035603,2]
[392460800,1761504642883,-43.10529379,0.00034418,7]
[392460801,1761504642899,-156.03624546,0.00034418,7]
[392460802,1761504642907,-179.01952839,0.00035603,2]
[392460803,1761504642918,-455.29610049,0.00035603,2]
[392460804,1761504643002,-299.69833443,0.00035603,2]
[392460870,1761504645651,-168.24579381,0.00032,120]
[392460871,1761504645660,-1993.23404639,0.00035603,2]
[392460872,1761504645737,-17.85930693,0.00035603,2]
[392460873,1761504725280,195.0,0.00029725,120]
[392460875,1761505084721,195.0,0.0002998,120]
[392460876,1761505084830,195.0,0.00031064,120]
[392460878,1761505104471,-2000.0,0.000288,2]
[392460879,1761505104500,-300.0,0.0002998,2]
[392460880,1761505104529,-607.79631006,0.0003116,2]
[392460881,1761505104558,-195.0,0.0003168,120]
[392460882,1761505104586,-253.299868,0.0003168,2]
[392460883,1761505104614,-195.0,0.0003168,120]
[392460884,1761505104648,-195.0,0.0003168,120]
[392460885,1761505104694,-300.0,0.0003168,2]
[392460886,1761505104725,-183.74429465,0.00032,120]
[392460887,1761505104757,-183.934052,0.00032337,2]
[392460888,1761505104787,-1253.0,0.000325,2]
[392460889,1761505104818,-183.74429465,0.00033,120]
[392460890,1761505104850,-424.0,0.00033145,3]
[392460891,1761505104879,-400.0,0.00033145,3]
[392460892,1761505104908,-741.48236128,0.00033146,2]
[392460893,1761505104922,-1167.99763872,0.00033146,2]
[392460894,1761505104933,-832.00236128,0.00033146,120]
[392460895,1761505104946,-300.0,0.00033146,120]
[392460896,1761505104958,-367.99763872,0.00033146,120]
[392460897,1761505104967,-200.0,0.00033146,2]
[392460898,1761505104977,-39.79867134,0.00033146,2]
[392460899,1761505104988,-195.0,0.00033146,2]
[392460900,1761505105000,-253.299868,0.00033146,2]
[392460901,1761505105011,-11.90146066,0.00033146,2]
[392460902,1761505105021,-166.66,0.00033159,30]
[392460903,1761505105030,-16.43853934,0.00033636,2]
[392460904,1761505105048,-154.44146066,0.00033636,2]
[392460905,1761505105057,-40.55853934,0.000339,120]
[392460906,1761505105069,-143.18575531,0.000339,120]
[392460907,1761505105080,-156.81424469,0.00034107,2]
[392460908,1761505105092,-183.74429465,0.00034107,2]
[392460909,1761505105105,-183.934052,0.00034107,2]
[392460910,1761505105122,-475.50740866,0.00034107,2]
[392460911,1761505105131,-150.0,0.00034355,2]
[392460912,1761505105141,-168.0,0.00034888,120]
[392460913,1761505105152,-459.49259134,0.0003508,120]
[392460914,1761505105163,-183.74429465,0.0003508,120]
[392460915,1761505105183,-424.0,0.0003508,120]
[392460916,1761505105195,-400.0,0.0003508,120]
[392460917,1761505105221,-132.76311401,0.0003508,120]
[392460918,1761505105230,-343.8648291,0.00035188,2]
[392460919,1761505105243,-1432.85205689,0.00035188,2]
[392460924,1761505328268,151.0,0.00038836,120]
[392460925,1761505328868,151.0,0.00038836,120]
[392460926,1761505330559,414.0,0.00038836,120]
[392460927,1761505398016,1392.65458356,0.00038836,120]
[392460928,1761505421374,239.09066547,0.00038836,120]
[392460930,1761505625572,151.0,0.00038836,120]
[392460931,1761505626172,151.0,0.00038836,120]
[392460932,1761505626783,151.0,0.00038836,120]
[392460933,1761505627387,151.0,0.00038836,120]
[392460934,1761505628027,151.0,0.00038836,120]
[392460935,1761505630561,520.0,0.00038836,120]
[392460936,1761505630840,160.12855637,0.00038836,120]
[392460937,1761505632756,250.0,0.00038836,120]
[392460938,1761505633122,-177.82949851,0.00032,120]
[392460939,1761505633142,-11.71625504,0.00033,120]
[392460940,1761505633370,250.0,0.00038836,120]
[392460941,1761505633961,250.0,0.00038836,120]
[392460942,1761505634567,250.0,0.00038836,120]
[392460943,1761505635153,250.0,0.00038836,120]
[392460944,1761505635748,250.0,0.00038836,120]
[392460945,1761505636608,250.0,0.00038836,120]
[392460946,1761505637331,250.0,0.00038836,120]
[392460947,1761505650112,-166.11324347,0.00033,120]
[392460948,1761505650132,-319.56465927,0.00033045,2]
[392460949,1761505747076,-168.75009308,0.00027815,2]
[392460952,1761505831762,-15.95990692,0.00027815,2]
[392460953,1761505831772,-453.98213259,0.00033045,2]
[392460954,1761505831783,-1351.00584585,0.00033045,2]
[392460955,1761505831792,-53.84404073,0.00033045,2]
[392460956,1761505831801,-150.0,0.00033146,2]
[392460957,1761505831810,-150.0,0.00033146,120]
[392460958,1761505831823,-2514.88592187,0.00033248,2]
[392460959,1761505832009,-21.06063923,0.00033248,2]
[392460960,1761505832147,-1149.40805194,0.00033248,2]
[392460961,1761505832160,-1808.91392983,0.00033248,2]
[392460962,1761505832172,-557.49214128,0.00033248,2]
[392460963,1761505832191,-302.61183806,0.00033248,2]
[392460964,1761505832201,-1020.46388477,0.00033248,2]
[392460965,1761505832212,-275.96,0.00033248,2]
[392461041,1761505837676,-22766.75149782,0.00033248,2]
[392461042,1761505837686,-3209.4739469,0.00033248,2]
[392461043,1761505837695,-1000.0,0.00033357,2]
[392461044,1761505837704,-1000.0,0.00033631,2]
[392461045,1761505837713,-1000.0,0.00033905,2]
[392461046,1761505837723,-7860.59,0.00034727,2]
[392461047,1761505837732,-2700.41,0.00034748,2]
[392461048,1761505837741,-602.52,0.00034871,2]
[392461049,1761505837750,-16700.25455526,0.00034948,7]
[392461050,1761505837765,-373.57020428,0.00034948,7]
[392461051,1761505837785,-259.37957832,0.00034948,7]
[392461052,1761505837796,-5719.26529892,0.00034948,7]
[392461053,1761505837840,-683.05394203,0.00034948,7]
[392461064,1761505839950,-2063.51538964,0.00034948,7]
[392461065,1761505841627,-67941.49103155,0.00034948,7]
[392461066,1761505841637,-3323.98783711,0.00035188,2]
[392461067,1761505841647,-150.0,0.00035188,2]
[392461068,1761505841656,-300.0,0.000352,2]
[392461069,1761505841665,-195.0,0.000352,120]
[392461070,1761505841675,-168.0,0.00035373,2]
[392461071,1761505841684,-1526.71994937,0.00035401,2]
[392461072,1761505841693,-400.0,0.00035513,7]
[392461073,1761505841702,-183.55921014,0.00035513,7]
[392461074,1761505841711,-204.43251313,0.00035567,2]
[392461075,1761505841720,-862.40233327,0.00035578,2]
[392461076,1761505841729,-620.24747146,0.00035603,2]
[392461077,1761505841884,-659.0,0.00035691,2]
[392461078,1761505841894,-245.0,0.0003571,2]
[392461079,1761505841903,-278.0,0.00035782,2]
[392461080,1761505841912,-660.0,0.00035783,120]
[392461081,1761505841922,-3899.17896841,0.00035797,2]
[392461082,1761505841932,-1000.0,0.00035899,2]
[392461083,1761505841941,-375.8977,0.00035899,2]
[392461084,1761505841950,-1000.0,0.00035899,2]
[392461085,1761505841959,-10720.3109,0.00035899,2]
[392461086,1761505841968,-23011.1745,0.000359,2]
[392461087,1761505841977,-2500.0,0.000359,2]
[392461088,1761505841987,-293.66987362,0.000359,2]
[392461089,1761505841996,-1197.85073936,0.00035921,2]
[392461090,1761505842006,-302.0,0.00035949,2]
[392461091,1761505842016,-1268.0,0.00035971,2]
[392461092,1761505842025,-579.14,0.00035999,9]
[392461093,1761505842034,-500.0,0.00035999,9]
[392461094,1761505842043,-502.48404597,0.00035999,9]
[392461095,1761505842052,-500.0,0.00035999,9]
[392461096,1761505842062,-287.71358426,0.00035999,9]
[392461097,1761505842071,-519.7770355,0.00035999,9]
[392461098,1761505842080,-500.0,0.00035999,7]
[392461099,1761505842090,-500.0,0.00035999,7]
[392461100,1761505842101,-284.6676131,0.00035999,9]
[392461101,1761505842110,-265.27702864,0.00035999,9]
[392461102,1761505842119,-201.18,0.00035999,14]
[392461103,1761505842128,-500.0,0.00035999,2]
[392461104,1761505842137,-500.0,0.00035999,2]
[392461105,1761505842147,-232.32231663,0.00035999,9]
[392461106,1761505842157,-15978.2921989,0.00035999,31]
[392461140,1761505845835,-1024.97281084,0.00035999,31]
[392461141,1761505845847,-3483.59907155,0.00035999,31]
[392461142,1761505845858,-1282.09258775,0.00035999,31]
[392461143,1761505845869,-2210.94890372,0.00035999,31]
[392461144,1761505845880,-4650.41399976,0.00035999,31]
[392461145,1761505845891,-3705.87228,0.00035999,31]
[392461146,1761505846097,-653.4840007,0.00035999,31]
[392461148,1761505930785,201.12765535,0.00038836,120]
[392461149,1761505945640,-168.0,0.0003,14]
[392461150,1761506245318,849.0,0.00038836,50]
[392461152,1761506278150,242.02,0.00013699,2]
[392461153,1761506317025,439.82,0.000315,120]
[392461154,1761506452726,6.68700775,0.0003,14]
[392461155,1761506707742,39757.98,0.00015,2]
[392461156,1761506707763,20000.0,0.00015,2]
[392461157,1761506707790,100000.0,0.00015,2]
[392461158,1761506707816,100000.0,0.00015,2]